[Event "Titled Tuesday Blitz November 9 2021"]
[White "Pranav, V"]
[Black "Costachi, Mihnea"]
[WhiteFideId "25060783"]
[BlackFideId "1217518"]
[WhiteElo "2351"]
[BlackElo "2482"]
[Result "0-1"]
[Round "11"]
[TimeControl "180+1"]
[Date "2021.11.09"]
[WhiteClock "0:00:01"]
[BlackClock "0:00:18"]

1. e4 {[%clk 0:03:00]}  e5 {[%clk 0:02:58]} 2. Nf3 {[%clk 0:03:01]}  Nc6 {[%clk 0:02:59]} 3. Bb5 {[%clk 0:03:01]}  a6 {[%clk 0:02:59]} 4. Ba4 {[%clk 0:03:01]}  d6 {[%clk 0:03:00]} 5. d3 {[%clk 0:03:00]}  g6 {[%clk 0:02:57]} 6. h4 {[%clk 0:02:59]}  h5 {[%clk 0:02:55]} 7. d4 {[%clk 0:02:58]}  Bd7 {[%clk 0:02:47]} 8. Nc3 {[%clk 0:02:53]}  Bg7 {[%clk 0:02:39]} 9. Bg5 {[%clk 0:02:52]}  f6 {[%clk 0:02:37]} 10. Be3 {[%clk 0:02:51]}  Nh6 {[%clk 0:02:35]} 11. Bb3 {[%clk 0:02:50]}  Ng4 {[%clk 0:02:34]} 12. Qd2 {[%clk 0:02:49]}  Nxe3 {[%clk 0:02:32]} 13. fxe3 {[%clk 0:02:50]}  Bg4 {[%clk 0:02:29]} 14. O-O-O {[%clk 0:02:49]}  Qd7 {[%clk 0:02:29]} 15. Nd5 {[%clk 0:02:44]}  O-O-O {[%clk 0:02:08]} 16. Ba4 {[%clk 0:02:44]}  b5 {[%clk 0:02:07]} 17. Bb3 {[%clk 0:02:43]}  Ne7 {[%clk 0:02:04]} 18. Qa5 {[%clk 0:02:36]}  Kb7 {[%clk 0:02:04]} 19. Nxe7 {[%clk 0:02:10]}  Qxe7 {[%clk 0:02:03]} 20. Bd5+ {[%clk 0:02:10]}  Ka7 {[%clk 0:01:50]} 21. Rd3 {[%clk 0:02:09]}  Rb8 {[%clk 0:01:44]} 22. Nd2 {[%clk 0:02:06]}  Rb6 {[%clk 0:01:41]} 23. Nb3 {[%clk 0:01:58]}  c6 {[%clk 0:01:37]} 24. c4 {[%clk 0:01:34]}  cxd5 {[%clk 0:01:35]} 25. c5 {[%clk 0:01:34]}  Rbb8 {[%clk 0:01:19]} 26. exd5 {[%clk 0:01:31]}  Be2 {[%clk 0:01:08]} 27. Rc3 {[%clk 0:01:22]}  Bc4 {[%clk 0:01:08]} 28. Qb4 {[%clk 0:01:22]}  Rhc8 {[%clk 0:01:00]} 29. cxd6 {[%clk 0:01:02]}  Qd7 {[%clk 0:01:00]} 30. Na5 {[%clk 0:00:50]}  Bf8 {[%clk 0:00:50]} 31. Nc6+ {[%clk 0:00:33]}  Rxc6 {[%clk 0:00:47]} 32. dxc6 {[%clk 0:00:34]}  Qxd6 {[%clk 0:00:47]} 33. Qxd6 {[%clk 0:00:22]}  Bxd6 {[%clk 0:00:48]} 34. Rd1 {[%clk 0:00:20]}  Kb6 {[%clk 0:00:45]} 35. d5 {[%clk 0:00:19]}  e4 {[%clk 0:00:46]} 36. b3 {[%clk 0:00:16]}  Bd3 {[%clk 0:00:43]} 37. c7 {[%clk 0:00:15]}  Ba3+ {[%clk 0:00:35]} 38. Kd2 {[%clk 0:00:14]}  Rc8 {[%clk 0:00:36]} 39. Rc6+ {[%clk 0:00:06]}  Kb7 {[%clk 0:00:36]} 40. Rxf6 {[%clk 0:00:05]}  Bb4+ {[%clk 0:00:31]} 41. Kc1 {[%clk 0:00:05]}  Rxc7+ {[%clk 0:00:29]} 42. Rc6 {[%clk 0:00:05]}  Rxc6+ {[%clk 0:00:29]} 43. dxc6+ {[%clk 0:00:06]}  Kxc6 {[%clk 0:00:30]} 44. Rg1 {[%clk 0:00:05]}  Be2 {[%clk 0:00:24]} 45. Kb2 {[%clk 0:00:05]}  Kd5 {[%clk 0:00:20]} 46. a3 {[%clk 0:00:04]}  Bc5 {[%clk 0:00:20]} 47. Kc2 {[%clk 0:00:01]}  Bxe3 {[%clk 0:00:19]} 48. Re1 {[%clk 0:00:02]}  Bd3+ {[%clk 0:00:20]} 49. Kc3 {[%clk 0:00:02]}  Bf2 {[%clk 0:00:17]} 50. Rd1 {[%clk 0:00:02]}  Bxh4 {[%clk 0:00:17]} 51. Kb4 {[%clk 0:00:01]}  Be7+ {[%clk 0:00:17]} 52. Ka5 {[%clk 0:00:01]}  Bxa3 {[%clk 0:00:18]} 53. Kxa6 {[%clk 0:00:01]}  Kd4 {[%clk 0:00:18]} 54. Ka5 {[%clk 0:00:01]}  e3 {[%clk 0:00:18]} 55. Rg1 {[%clk 0:00:01]}  e2 {[%clk 0:00:18]} 56. g4 {[%clk 0:00:02]}  h4 {[%clk 0:00:17]} 57. g5 {[%clk 0:00:01]}  h3 {[%clk 0:00:18]} 58. Rh1 {[%clk 0:00:01]}  h2 {[%clk 0:00:18]} 59. Rxh2 {[%clk 0:00:01]}  e1=Q+ {[%clk 0:00:18]} 0-1


[Site "https://www.chess.com"]

[Event "Titled Tuesday Blitz November 9 2021"]
[White "Rostovtsev, Dmitry"]
[Black "Cunjalo, Faris"]
[WhiteFideId "34278320"]
[BlackFideId "14410710"]
[WhiteElo "2253"]
[BlackElo "2263"]
[Result "0-1"]
[Round "11"]
[TimeControl "180+1"]
[Date "2021.11.09"]
[WhiteClock "0:01:09"]
[BlackClock "0:01:52"]

1. e4 {[%clk 0:03:00]}  g6 {[%clk 0:03:00]} 2. d4 {[%clk 0:03:00]}  Bg7 {[%clk 0:03:01]} 3. Nc3 {[%clk 0:03:01]}  d6 {[%clk 0:03:02]} 4. f4 {[%clk 0:03:01]}  a6 {[%clk 0:03:03]} 5. Nf3 {[%clk 0:03:01]}  b5 {[%clk 0:03:03]} 6. Bd3 {[%clk 0:03:02]}  Nd7 {[%clk 0:03:04]} 7. O-O {[%clk 0:03:02]}  c5 {[%clk 0:03:02]} 8. dxc5 {[%clk 0:02:52]}  Nxc5 {[%clk 0:03:03]} 9. Be3 {[%clk 0:02:46]}  Bb7 {[%clk 0:03:04]} 10. e5 {[%clk 0:02:44]}  Nxd3 {[%clk 0:03:02]} 11. cxd3 {[%clk 0:02:39]}  Nh6 {[%clk 0:03:02]} 12. d4 {[%clk 0:02:15]}  O-O {[%clk 0:02:57]} 13. h3 {[%clk 0:02:15]}  b4 {[%clk 0:02:54]} 14. Ne2 {[%clk 0:02:13]}  Nf5 {[%clk 0:02:51]} 15. Bf2 {[%clk 0:02:13]}  e6 {[%clk 0:02:52]} 16. Qd2 {[%clk 0:01:59]}  Bxf3 {[%clk 0:02:51]} 17. gxf3 {[%clk 0:01:58]}  dxe5 {[%clk 0:02:51]} 18. fxe5 {[%clk 0:01:57]}  Bxe5 {[%clk 0:02:51]} 19. Qxb4 {[%clk 0:01:56]}  Qg5+ {[%clk 0:02:40]} 20. Kh1 {[%clk 0:01:54]}  Bd6 {[%clk 0:02:39]} 21. Qb3 {[%clk 0:01:45]}  Rab8 {[%clk 0:02:36]} 22. Qc3 {[%clk 0:01:42]}  Rfc8 {[%clk 0:02:36]} 23. Qd3 {[%clk 0:01:39]}  Rxb2 {[%clk 0:02:36]} 24. Rab1 {[%clk 0:01:39]}  Rxa2 {[%clk 0:02:31]} 25. Rb7 {[%clk 0:01:38]}  Ra3 {[%clk 0:02:25]} 26. Qe4 {[%clk 0:01:30]}  Qh5 {[%clk 0:02:19]} 27. Qg4 {[%clk 0:01:16]}  Rxf3 {[%clk 0:02:19]} 28. Qxh5 {[%clk 0:01:16]}  gxh5 {[%clk 0:02:20]} 29. Kg2 {[%clk 0:01:14]}  Ra3 {[%clk 0:02:15]} 30. Ng1 {[%clk 0:01:13]}  Rc2 {[%clk 0:02:13]} 31. Re1 {[%clk 0:01:09]}  Raa2 {[%clk 0:01:52]} 0-1


[Site "https://www.chess.com"]

[Event "Titled Tuesday Blitz November 9 2021"]
[White "Rustemov, Alexander"]
[Black "Kamsky, Gata"]
[WhiteFideId "4119002"]
[BlackFideId "2000024"]
[WhiteElo "2788"]
[BlackElo "2645"]
[Result "1/2-1/2"]
[Round "11"]
[TimeControl "180+1"]
[Date "2021.11.09"]
[WhiteClock "0:01:24"]
[BlackClock "0:01:44"]

1. d4 {[%clk 0:03:00]}  Nf6 {[%clk 0:02:56]} 2. c4 {[%clk 0:03:01]}  e6 {[%clk 0:02:52]} 3. Nf3 {[%clk 0:03:00]}  Bb4+ {[%clk 0:02:46]} 4. Bd2 {[%clk 0:03:00]}  Bxd2+ {[%clk 0:02:46]} 5. Qxd2 {[%clk 0:02:59]}  b6 {[%clk 0:02:46]} 6. g3 {[%clk 0:02:57]}  Bb7 {[%clk 0:02:46]} 7. Bg2 {[%clk 0:02:58]}  O-O {[%clk 0:02:45]} 8. O-O {[%clk 0:02:58]}  d6 {[%clk 0:02:44]} 9. Qf4 {[%clk 0:02:57]}  Nbd7 {[%clk 0:02:43]} 10. Nc3 {[%clk 0:02:57]}  Re8 {[%clk 0:02:42]} 11. e4 {[%clk 0:02:56]}  e5 {[%clk 0:02:42]} 12. Qe3 {[%clk 0:02:56]}  c5 {[%clk 0:02:24]} 13. d5 {[%clk 0:02:51]}  Nf8 {[%clk 0:02:23]} 14. Ne1 {[%clk 0:02:50]}  Ng4 {[%clk 0:02:14]} 15. Qd2 {[%clk 0:02:47]}  Nh6 {[%clk 0:02:10]} 16. Nd3 {[%clk 0:02:45]}  Ng6 {[%clk 0:02:10]} 17. Rae1 {[%clk 0:02:38]}  Bc8 {[%clk 0:02:02]} 18. f4 {[%clk 0:02:24]}  f6 {[%clk 0:01:58]} 19. f5 {[%clk 0:02:20]}  Nf8 {[%clk 0:01:56]} 20. h3 {[%clk 0:02:11]}  Nf7 {[%clk 0:01:54]} 21. g4 {[%clk 0:02:11]}  h6 {[%clk 0:01:48]} 22. b3 {[%clk 0:02:04]}  Nh7 {[%clk 0:01:48]} 23. h4 {[%clk 0:02:02]}  Bd7 {[%clk 0:01:47]} 24. Bf3 {[%clk 0:02:00]}  a6 {[%clk 0:01:45]} 25. a4 {[%clk 0:01:39]}  a5 {[%clk 0:01:45]} 26. Kf2 {[%clk 0:01:34]}  Kf8 {[%clk 0:01:45]} 27. Rg1 {[%clk 0:01:33]}  Ke7 {[%clk 0:01:45]} 28. Rg3 {[%clk 0:01:32]}  Rh8 {[%clk 0:01:44]} 29. Reg1 {[%clk 0:01:32]}  Qf8 {[%clk 0:01:43]} 30. Ke1 {[%clk 0:01:31]}  Kd8 {[%clk 0:01:44]} 31. Kd1 {[%clk 0:01:31]}  Kc7 {[%clk 0:01:44]} 32. Kc2 {[%clk 0:01:31]}  Qe7 {[%clk 0:01:44]} 33. Kb2 {[%clk 0:01:24]}  Kb7 {[%clk 0:01:44]} 1/2-1/2


[Site "https://www.chess.com"]

[Event "Titled Tuesday Blitz November 9 2021"]
[White "Shirazi, Kamran"]
[Black "Karolczuk, Iwo"]
[WhiteFideId "2000733"]
[BlackFideId "21816972"]
[WhiteElo "2317"]
[BlackElo "2093"]
[Result "0-1"]
[Round "11"]
[TimeControl "180+1"]
[Date "2021.11.09"]
[WhiteClock "0:01:19"]
[BlackClock "0:00:32"]

1. e3 {[%clk 0:02:59]}  Nf6 {[%clk 0:02:53]} 2. Ne2 {[%clk 0:03:00]}  g6 {[%clk 0:02:53]} 3. d4 {[%clk 0:03:01]}  Bg7 {[%clk 0:02:53]} 4. h4 {[%clk 0:03:01]}  O-O {[%clk 0:02:54]} 5. h5 {[%clk 0:03:02]}  Nxh5 {[%clk 0:02:53]} 6. Rxh5 {[%clk 0:03:02]}  gxh5 {[%clk 0:02:53]} 7. Nf4 {[%clk 0:03:02]}  f5 {[%clk 0:02:51]} 8. Nxh5 {[%clk 0:03:03]}  e6 {[%clk 0:02:47]} 9. d5 {[%clk 0:03:01]}  e5 {[%clk 0:02:41]} 10. d6 {[%clk 0:02:52]}  cxd6 {[%clk 0:02:41]} 11. Qxd6 {[%clk 0:02:50]}  Qe8 {[%clk 0:02:25]} 12. Bc4+ {[%clk 0:02:47]}  Kh8 {[%clk 0:02:24]} 13. Nxg7 {[%clk 0:02:46]}  Kxg7 {[%clk 0:02:24]} 14. Bd2 {[%clk 0:02:34]}  Rf6 {[%clk 0:02:03]} 15. Qd5 {[%clk 0:02:34]}  Nc6 {[%clk 0:01:57]} 16. Bc3 {[%clk 0:02:33]}  d6 {[%clk 0:01:57]} 17. Nd2 {[%clk 0:02:26]}  Be6 {[%clk 0:01:55]} 18. Qd3 {[%clk 0:02:25]}  Bxc4 {[%clk 0:01:29]} 19. Nxc4 {[%clk 0:02:24]}  Rd8 {[%clk 0:01:30]} 20. f4 {[%clk 0:02:24]}  Qe6 {[%clk 0:01:15]} 21. O-O-O {[%clk 0:02:17]}  Kg8 {[%clk 0:01:11]} 22. fxe5 {[%clk 0:02:08]}  dxe5 {[%clk 0:01:05]} 23. Qxd8+ {[%clk 0:02:07]}  Nxd8 {[%clk 0:01:05]} 24. Rxd8+ {[%clk 0:02:08]}  Rf8 {[%clk 0:01:06]} 25. Rxf8+ {[%clk 0:02:01]}  Kxf8 {[%clk 0:01:07]} 26. Nxe5 {[%clk 0:02:00]}  Qg8 {[%clk 0:00:55]} 27. Nd7+ {[%clk 0:01:56]}  Ke7 {[%clk 0:00:52]} 28. Nc5 {[%clk 0:01:38]}  Qxg2 {[%clk 0:00:50]} 29. b4 {[%clk 0:01:38]}  h5 {[%clk 0:00:49]} 30. Nd3 {[%clk 0:01:38]}  h4 {[%clk 0:00:45]} 31. Nf4 {[%clk 0:01:36]}  Qf1+ {[%clk 0:00:38]} 32. Kd2 {[%clk 0:01:36]}  h3 {[%clk 0:00:39]} 33. Ng6+ {[%clk 0:01:30]}  Kd7 {[%clk 0:00:35]} 34. Ne5+ {[%clk 0:01:27]}  Kc8 {[%clk 0:00:35]} 35. Nf7 {[%clk 0:01:22]}  h2 {[%clk 0:00:33]} 36. Nd6+ {[%clk 0:01:20]}  Kd7 {[%clk 0:00:33]} 37. Nxb7 {[%clk 0:01:20]}  Qg2+ {[%clk 0:00:31]} 38. Kc1 {[%clk 0:01:19]}  Qxb7 {[%clk 0:00:32]} 0-1


[Site "https://www.chess.com"]

[Event "Titled Tuesday Blitz November 9 2021"]
[White "Suarez Garcia, Carlos"]
[Black "Djokic, Mihailo"]
[WhiteFideId "22230858"]
[BlackFideId "976440"]
[WhiteElo "2487"]
[BlackElo "2008"]
[Result "0-1"]
[Round "11"]
[TimeControl "180+1"]
[Date "2021.11.09"]
[WhiteClock "0:01:20"]
[BlackClock "0:00:57"]

1. Nf3 {[%clk 0:03:00]}  Nf6 {[%clk 0:02:59]} 2. b3 {[%clk 0:03:00]}  g6 {[%clk 0:02:59]} 3. Bb2 {[%clk 0:03:00]}  Bg7 {[%clk 0:03:00]} 4. g3 {[%clk 0:03:01]}  O-O {[%clk 0:03:01]} 5. Bg2 {[%clk 0:03:01]}  d6 {[%clk 0:03:01]} 6. d4 {[%clk 0:03:01]}  e5 {[%clk 0:03:01]} 7. dxe5 {[%clk 0:03:01]}  Nfd7 {[%clk 0:03:01]} 8. c4 {[%clk 0:03:01]}  Nc6 {[%clk 0:03:00]} 9. O-O {[%clk 0:03:01]}  dxe5 {[%clk 0:03:00]} 10. Nc3 {[%clk 0:02:57]}  e4 {[%clk 0:02:57]} 11. Ne1 {[%clk 0:02:56]}  f5 {[%clk 0:02:56]} 12. Qc1 {[%clk 0:02:51]}  Nde5 {[%clk 0:02:55]} 13. Nc2 {[%clk 0:02:46]}  Be6 {[%clk 0:02:48]} 14. Rd1 {[%clk 0:02:43]}  Qc8 {[%clk 0:02:44]} 15. Nd5 {[%clk 0:02:43]}  Re8 {[%clk 0:02:40]} 16. Nd4 {[%clk 0:02:42]}  Nxd4 {[%clk 0:02:36]} 17. Bxd4 {[%clk 0:02:43]}  c6 {[%clk 0:02:35]} 18. Nf4 {[%clk 0:02:41]}  Bf7 {[%clk 0:02:35]} 19. h4 {[%clk 0:02:41]}  Rd8 {[%clk 0:02:28]} 20. Qb2 {[%clk 0:02:36]}  Rxd4 {[%clk 0:02:24]} 21. Rxd4 {[%clk 0:02:31]}  c5 {[%clk 0:02:25]} 22. e3 {[%clk 0:02:22]}  cxd4 {[%clk 0:02:22]} 23. exd4 {[%clk 0:02:22]}  Qc7 {[%clk 0:02:07]} 24. dxe5 {[%clk 0:02:18]}  Bxe5 {[%clk 0:02:07]} 25. Qb1 {[%clk 0:02:19]}  Rd8 {[%clk 0:02:02]} 26. h5 {[%clk 0:02:12]}  Qc5 {[%clk 0:01:56]} 27. h6 {[%clk 0:01:59]}  Rd2 {[%clk 0:01:50]} 28. Qe1 {[%clk 0:01:57]}  Rxf2 {[%clk 0:01:50]} 29. Kh2 {[%clk 0:01:52]}  g5 {[%clk 0:01:35]} 30. Rd1 {[%clk 0:01:48]}  Kf8 {[%clk 0:01:21]} 31. b4 {[%clk 0:01:43]}  Qb6 {[%clk 0:01:13]} 32. Nh3 {[%clk 0:01:29]}  Rxa2 {[%clk 0:01:05]} 33. Qf1 {[%clk 0:01:27]}  Qe3 {[%clk 0:00:59]} 34. Qe1 {[%clk 0:01:20]}  Re2 {[%clk 0:00:57]} 0-1


[Site "https://www.chess.com"]

[Event "Titled Tuesday Blitz November 9 2021"]
[White "Svane, Rasmus"]
[Black "Madaminov, Mukhiddin"]
[WhiteFideId "4657101"]
[BlackFideId "14210703"]
[WhiteElo "2643"]
[BlackElo "1855"]
[Result "0-1"]
[Round "11"]
[TimeControl "180+1"]
[Date "2021.11.09"]
[WhiteClock "0:00:22"]
[BlackClock "0:00:20"]

1. d4 {[%clk 0:03:00]}  Nf6 {[%clk 0:02:59]} 2. Nf3 {[%clk 0:03:01]}  e6 {[%clk 0:03:00]} 3. c4 {[%clk 0:03:01]}  d5 {[%clk 0:03:00]} 4. Nc3 {[%clk 0:03:01]}  Bb4 {[%clk 0:02:59]} 5. cxd5 {[%clk 0:03:00]}  exd5 {[%clk 0:03:00]} 6. Bg5 {[%clk 0:03:01]}  Nbd7 {[%clk 0:03:00]} 7. Qc2 {[%clk 0:02:54]}  h6 {[%clk 0:02:56]} 8. Bh4 {[%clk 0:02:54]}  O-O {[%clk 0:02:55]} 9. e3 {[%clk 0:02:53]}  c5 {[%clk 0:02:47]} 10. dxc5 {[%clk 0:02:46]}  Qa5 {[%clk 0:02:42]} 11. Bd3 {[%clk 0:02:35]}  Ne4 {[%clk 0:02:36]} 12. O-O {[%clk 0:02:28]}  Bxc3 {[%clk 0:02:32]} 13. bxc3 {[%clk 0:02:29]}  Ndxc5 {[%clk 0:02:32]} 14. c4 {[%clk 0:02:24]}  Be6 {[%clk 0:02:18]} 15. Nd4 {[%clk 0:02:21]}  Qd2 {[%clk 0:02:08]} 16. Bxe4 {[%clk 0:01:58]}  Nxe4 {[%clk 0:02:08]} 17. cxd5 {[%clk 0:01:57]}  Qxc2 {[%clk 0:02:04]} 18. Nxc2 {[%clk 0:01:58]}  Bxd5 {[%clk 0:02:05]} 19. Nb4 {[%clk 0:01:44]}  Bc4 {[%clk 0:02:02]} 20. Rfc1 {[%clk 0:01:42]}  Rfc8 {[%clk 0:02:00]} 21. f3 {[%clk 0:01:43]}  a5 {[%clk 0:01:46]} 22. Nc2 {[%clk 0:01:29]}  Nc3 {[%clk 0:01:46]} 23. Nd4 {[%clk 0:01:29]}  Nxa2 {[%clk 0:01:24]} 24. Rxc4 {[%clk 0:01:26]}  Rxc4 {[%clk 0:01:25]} 25. Rxa2 {[%clk 0:01:27]}  b5 {[%clk 0:01:22]} 26. Be1 {[%clk 0:01:18]}  b4 {[%clk 0:01:20]} 27. Ra4 {[%clk 0:01:16]}  b3 {[%clk 0:01:06]} 28. Ra3 {[%clk 0:00:58]}  Rc1 {[%clk 0:00:53]} 29. Nxb3 {[%clk 0:00:53]}  Rxe1+ {[%clk 0:00:47]} 30. Kf2 {[%clk 0:00:53]}  Rh1 {[%clk 0:00:47]} 31. h3 {[%clk 0:00:44]}  a4 {[%clk 0:00:46]} 32. Nc5 {[%clk 0:00:44]}  Ra5 {[%clk 0:00:47]} 33. Nxa4 {[%clk 0:00:41]}  Kh7 {[%clk 0:00:28]} 34. e4 {[%clk 0:00:34]}  Kg6 {[%clk 0:00:26]} 35. Ke3 {[%clk 0:00:27]}  Rg1 {[%clk 0:00:26]} 36. g4 {[%clk 0:00:26]}  Kg5 {[%clk 0:00:26]} 37. Kf2 {[%clk 0:00:20]}  Rb1 {[%clk 0:00:21]} 38. Nc3 {[%clk 0:00:20]}  Rb2+ {[%clk 0:00:20]} 39. Kg3 {[%clk 0:00:20]}  Rxa3 {[%clk 0:00:20]} 40. Nd5 {[%clk 0:00:21]}  Kg6 {[%clk 0:00:19]} 41. h4 {[%clk 0:00:22]}  Kh7 {[%clk 0:00:20]} 0-1


[Site "https://www.chess.com"]

[Event "Titled Tuesday Blitz November 9 2021"]
[White "Visakh N R"]
[Black "Preotu, Razvan"]
[WhiteFideId "25012223"]
[BlackFideId "2613280"]
[WhiteElo "2454"]
[BlackElo "2407"]
[Result "1-0"]
[Round "11"]
[TimeControl "180+1"]
[Date "2021.11.09"]
[WhiteClock "0:01:18"]
[BlackClock "0:00:01"]

1. e4 {[%clk 0:03:00]}  c5 {[%clk 0:02:59]} 2. Nf3 {[%clk 0:02:57]}  d6 {[%clk 0:03:00]} 3. Bb5+ {[%clk 0:02:53]}  Nd7 {[%clk 0:03:00]} 4. O-O {[%clk 0:02:52]}  a6 {[%clk 0:02:58]} 5. Bxd7+ {[%clk 0:02:52]}  Bxd7 {[%clk 0:02:59]} 6. d4 {[%clk 0:02:51]}  cxd4 {[%clk 0:02:58]} 7. Qxd4 {[%clk 0:02:52]}  e5 {[%clk 0:02:50]} 8. Qd3 {[%clk 0:02:52]}  h6 {[%clk 0:02:46]} 9. c4 {[%clk 0:02:51]}  b5 {[%clk 0:02:46]} 10. Nc3 {[%clk 0:02:51]}  bxc4 {[%clk 0:02:45]} 11. Qxc4 {[%clk 0:02:52]}  Be6 {[%clk 0:02:45]} 12. Qa4+ {[%clk 0:02:49]}  Qd7 {[%clk 0:02:27]} 13. Qa5 {[%clk 0:02:47]}  Nf6 {[%clk 0:02:26]} 14. Rd1 {[%clk 0:02:46]}  Qb7 {[%clk 0:02:26]} 15. Qa4+ {[%clk 0:02:42]}  Bd7 {[%clk 0:02:25]} 16. Qa5 {[%clk 0:02:29]}  Be7 {[%clk 0:02:21]} 17. b3 {[%clk 0:02:26]}  O-O {[%clk 0:02:21]} 18. Ba3 {[%clk 0:02:25]}  Nxe4 {[%clk 0:02:14]} 19. Nxe4 {[%clk 0:02:17]}  Qxe4 {[%clk 0:02:15]} 20. Bxd6 {[%clk 0:02:16]}  Bxd6 {[%clk 0:01:30]} 21. Rxd6 {[%clk 0:02:15]}  Be6 {[%clk 0:00:50]} 22. Re1 {[%clk 0:01:52]}  Qc2 {[%clk 0:00:45]} 23. Rd2 {[%clk 0:01:41]}  Qc6 {[%clk 0:00:38]} 24. Nxe5 {[%clk 0:01:41]}  Qb5 {[%clk 0:00:39]} 25. Qxb5 {[%clk 0:01:38]}  axb5 {[%clk 0:00:40]} 26. Nc6 {[%clk 0:01:38]}  Kh7 {[%clk 0:00:34]} 27. f3 {[%clk 0:01:37]}  Rfc8 {[%clk 0:00:33]} 28. Nb4 {[%clk 0:01:37]}  Rc5 {[%clk 0:00:29]} 29. Kf2 {[%clk 0:01:37]}  Rac8 {[%clk 0:00:29]} 30. Ree2 {[%clk 0:01:35]}  h5 {[%clk 0:00:29]} 31. Rc2 {[%clk 0:01:35]}  h4 {[%clk 0:00:27]} 32. Rxc5 {[%clk 0:01:35]}  Rxc5 {[%clk 0:00:28]} 33. Rc2 {[%clk 0:01:35]}  Rg5 {[%clk 0:00:25]} 34. Nd3 {[%clk 0:01:31]}  Rd5 {[%clk 0:00:20]} 35. Nf4 {[%clk 0:01:30]}  Rd1 {[%clk 0:00:20]} 36. Nxe6 {[%clk 0:01:22]}  fxe6 {[%clk 0:00:21]} 37. Re2 {[%clk 0:01:23]}  Ra1 {[%clk 0:00:20]} 38. Ke3 {[%clk 0:01:23]}  Kg6 {[%clk 0:00:19]} 39. Kd4 {[%clk 0:01:23]}  Kf5 {[%clk 0:00:16]} 40. Kc5 {[%clk 0:01:23]}  h3 {[%clk 0:00:08]} 41. gxh3 {[%clk 0:01:22]}  Rf1 {[%clk 0:00:09]} 42. Kxb5 {[%clk 0:01:19]}  Rxf3 {[%clk 0:00:09]} 43. b4 {[%clk 0:01:20]}  e5 {[%clk 0:00:09]} 44. a4 {[%clk 0:01:20]}  e4 {[%clk 0:00:10]} 45. a5 {[%clk 0:01:20]}  Ra3 {[%clk 0:00:08]} 46. Ka6 {[%clk 0:01:20]}  Ke5 {[%clk 0:00:08]} 47. b5 {[%clk 0:01:20]}  e3 {[%clk 0:00:06]} 48. b6 {[%clk 0:01:21]}  Kd6 {[%clk 0:00:07]} 49. Re1 {[%clk 0:01:19]}  Rc3 {[%clk 0:00:02]} 50. Kb7 {[%clk 0:01:18]}  Ke7 {[%clk 0:00:01]} 51. a6 {[%clk 0:01:18]} 1-0


[Site "https://www.chess.com"]